fUSD/lending_fUSD_20251231
["ID","MTS","AMOUNT","RATE_DAILY","PERIOD"]
[400171744,1767168576312,151.0,0.00043178,50]
[400171745,1767168576617,151.0,0.00043178,50]
[400171746,1767168576870,151.0,0.00043178,50]
[400171747,1767168576911,151.0,0.00043178,50]
[400171748,1767168577176,151.0,0.00043178,50]
[400171749,1767168577281,151.0,0.00043178,50]
[400171750,1767168577474,151.0,0.00043178,50]
[400171751,1767168577590,151.0,0.00043178,50]
[400171752,1767168577771,151.0,0.00043178,50]
[400171753,1767168577906,151.0,0.00043178,50]
[400171754,1767168578063,151.0,0.00043178,50]
[400171755,1767168578212,151.0,0.00043178,50]
[400171756,1767168578432,170.667104,0.00043178,50]
[400171757,1767168578467,151.0,0.00043178,50]
[400171758,1767168578559,168.812501,0.00043178,50]
[400171759,1767168578743,170.667104,0.00043178,50]
[400171760,1767168578776,151.0,0.00043178,50]
[400171761,1767168579035,170.667104,0.00043178,50]
[400171762,1767168579075,151.0,0.00043178,50]
[400171763,1767168579210,157.221118,0.00043178,50]
[400171764,1767168579319,170.667104,0.00043178,50]
[400171765,1767168579366,151.0,0.00043178,50]
[400171766,1767168579532,157.221118,0.00043178,50]
[400171767,1767168579611,170.667104,0.00043178,50]
[400171768,1767168579674,151.0,0.00043178,50]
[400171769,1767168579867,157.221118,0.00043178,50]
[400171770,1767168579914,170.667104,0.00043178,50]
[400171771,1767168579994,151.0,0.00043178,50]
[400171772,1767168580090,996.528765,0.00043178,50]
[400171773,1767168580166,157.221118,0.00043178,50]
[400171774,1767168580206,170.667104,0.00043178,50]
[400171775,1767168580321,151.0,0.00043178,50]
[400171776,1767168580649,157.221118,0.00043178,50]
[400171777,1767168580680,170.667104,0.00043178,50]
[400171778,1767168580878,996.528765,0.00043178,50]
[400171779,1767168580925,151.0,0.00043178,50]
[400171780,1767168580968,157.221118,0.00043178,50]
[400171781,1767168581000,170.667104,0.00043178,50]
[400171782,1767168581034,151.0,0.00043178,50]
[400171783,1767168581070,157.221118,0.00043178,50]
[400171784,1767168581100,170.667104,0.00043178,50]
[400171785,1767168581168,996.528765,0.00043178,50]
[400171786,1767168581213,196.026062,0.00043178,50]
[400171787,1767168581377,157.221118,0.00043178,50]
[400171788,1767168581410,170.667104,0.00043178,50]
[400171789,1767168581470,996.528765,0.00043178,50]
[400171792,1767168581670,157.221118,0.00043178,50]
[400171793,1767168581701,170.667104,0.00043178,50]
[400171794,1767168581770,996.528765,0.00043178,50]
[400171795,1767168581932,157.336587,0.00043178,50]
[400171796,1767168581998,157.221118,0.00043178,50]
[400171797,1767168582057,996.528765,0.00043178,50]
[400171798,1767168582150,170.667104,0.00043178,50]
[400171799,1767168582280,157.336587,0.00043178,50]
[400171800,1767168582334,157.221118,0.00043178,50]
[400171801,1767168582371,996.528765,0.00043178,50]
[400171802,1767168582427,170.667104,0.00043178,50]
[400171803,1767168582579,157.336587,0.00043178,50]
[400171804,1767168582660,996.528765,0.00043178,50]
[400171805,1767168582692,157.221118,0.00043178,50]
[400171806,1767168582724,170.667104,0.00043178,50]
[400171807,1767168582871,157.336587,0.00043178,50]
[400171808,1767168582956,996.528765,0.00043178,50]
[400171809,1767168582987,157.221118,0.00043178,50]
[400171810,1767168583021,170.667104,0.00043178,50]
[400171811,1767168583266,996.528765,0.00043178,50]
[400171812,1767168583306,157.221118,0.00043178,50]
[400171813,1767168583406,170.667104,0.00043178,50]
[400171814,1767168583484,157.336587,0.00043178,50]
[400171815,1767168583585,996.528765,0.00043178,50]
[400171816,1767168583617,157.221118,0.00043178,50]
[400171817,1767168583717,170.667104,0.00043178,50]
[400171818,1767168583813,157.336587,0.00043178,50]
[400171819,1767168583874,996.528765,0.00043178,50]
[400171820,1767168584020,170.667104,0.00043178,50]
[400171821,1767168584123,157.336587,0.00043178,50]
[400171822,1767168584188,996.528765,0.00043178,50]
[400171823,1767168584250,157.221118,0.00043178,50]
[400171824,1767168584399,170.667111,0.00043178,50]
[400171825,1767168584434,157.336587,0.00043178,50]
[400171826,1767168584490,996.528765,0.00043178,50]
[400171827,1767168584547,157.221118,0.00043178,50]
[400171828,1767168584715,157.336587,0.00043178,50]
[400171829,1767168584845,157.221118,0.00043178,50]
[400171830,1767168584931,996.528765,0.00043178,50]
[400171831,1767168584999,157.336587,0.00043178,50]
[400171832,1767168585179,157.221118,0.00043178,50]
[400171833,1767168585262,996.528765,0.00043178,50]
[400171834,1767168585315,157.336587,0.00043178,50]
[400171835,1767168585480,157.221126,0.00043178,50]
[400171836,1767168585594,996.528765,0.00043178,50]
[400171837,1767168585625,157.336587,0.00043178,50]
[400171838,1767168585888,996.528765,0.00043178,50]
[400171839,1767168585923,157.336587,0.00043178,50]
[400171840,1767168586192,996.528765,0.00043178,50]
[400171841,1767168586348,157.336587,0.00043178,50]
[400171842,1767168586487,996.528757,0.00043178,50]
[400171843,1767168586726,157.336587,0.00043178,50]
[400171844,1767168587055,157.336587,0.00043178,50]
[400171845,1767168587403,157.336587,0.00043178,50]
[400171846,1767168587438,151.0,0.00043178,50]
[400171847,1767168587709,157.336587,0.00043178,50]
[400171848,1767168587742,151.0,0.00043178,50]
[400171849,1767168588013,157.336587,0.00043178,50]
[400171850,1767168588045,151.0,0.00043178,50]
[400171851,1767168588318,157.336583,0.00043178,50]
[400171852,1767168588353,151.0,0.00043178,50]
[400171853,1767168588810,151.0,0.00043178,50]
[400171854,1767168588946,336.444051,0.00043178,50]
[400171855,1767168589060,151.0,0.00043178,50]
[400171856,1767168589248,336.444051,0.00043178,50]
[400171857,1767168589391,151.0,0.00043178,50]
[400171858,1767168589549,336.444051,0.00043178,50]
[400171859,1767168589898,151.0,0.00043178,50]
[400171860,1767168589930,336.444051,0.00043178,50]
[400171861,1767168589975,151.0,0.00043178,50]
[400171862,1767168590177,336.444051,0.00043178,50]
[400171863,1767168590272,151.0,0.00043178,50]
[400171864,1767168590466,336.444051,0.00043178,50]
[400171865,1767168590564,151.0,0.00043178,50]
[400171866,1767168590857,151.0,0.00043178,50]
[400171867,1767168590892,336.444051,0.00043178,50]
[400171868,1767168590925,151.0,0.00043178,50]
[400171869,1767168590968,151.0,0.00043178,50]
[400171870,1767168591037,336.444051,0.00043178,50]
[400171871,1767168591164,151.0,0.00043178,50]
[400171872,1767168591263,151.0,0.00043178,50]
[400171873,1767168591353,336.444051,0.00043178,50]
[400171874,1767168591574,151.0,0.00043178,50]
[400171875,1767168591606,151.0,0.00043178,50]
[400171876,1767168591669,336.444051,0.00043178,50]
[400171877,1767168591901,151.0,0.00043178,50]
[400171878,1767168591938,151.0,0.00043178,50]
[400171879,1767168591976,336.444051,0.00043178,50]
[400171880,1767168592187,151.0,0.00043178,50]
[400171881,1767168592249,151.0,0.00043178,50]
[400171882,1767168592287,336.444051,0.00043178,50]
[400171883,1767168592510,151.0,0.00043178,50]
[400171884,1767168592547,161.533249,0.00043178,50]
[400171885,1767168592583,336.444051,0.00043178,50]
[400171886,1767168592803,270.905637,0.00043178,50]
[400171887,1767168592871,336.444051,0.00043178,50]
[400171888,1767168593188,336.444051,0.00043178,50]
[400171889,1767168593502,336.444051,0.00043178,50]
[400171890,1767168593811,336.444051,0.00043178,50]
[400171891,1767168594158,336.444051,0.00043178,50]
[400171892,1767168594494,336.444051,0.00043178,50]
[400171893,1767168594778,336.444058,0.00043178,50]
[400171894,1767168595896,151.0,0.00043178,50]
[400171895,1767168596200,151.0,0.00043178,50]
[400171896,1767168596493,151.0,0.00043178,50]
[400171898,1767168596790,151.0,0.00043178,50]
[400171903,1767168597143,151.0,0.00043178,50]
[400171907,1767168597407,173.400647,0.00043178,50]
[400171910,1767168612163,476.441207,0.00043178,50]
[400171911,1767168612211,-99.8102644,0.00012985,2]
[400171912,1767168612239,-111.54408078,0.00012985,2]
[400171913,1767168612461,476.441207,0.00043178,50]
[400171914,1767168612749,476.441207,0.00043178,50]
[400171915,1767168612969,151.0,0.00043178,50]
[400171916,1767168613050,476.441207,0.00043178,50]
[400171917,1767168613124,151.0,0.00043178,50]
[400171918,1767168613261,151.0,0.00043178,50]
[400171919,1767168613335,476.441207,0.00043178,50]
[400171920,1767168613448,151.0,0.00043178,50]
[400171921,1767168613547,151.0,0.00043178,50]
[400171922,1767168613627,476.441207,0.00043178,50]
[400171923,1767168613741,151.0,0.00043178,50]
[400171924,1767168613859,151.0,0.00043178,50]
[400171925,1767168613934,476.441207,0.00043178,50]
[400171926,1767168614039,151.0,0.00043178,50]
[400171927,1767168614148,151.0,0.00043178,50]
[400171928,1767168614227,476.441207,0.00043178,50]
[400171929,1767168614327,151.0,0.00043178,50]
[400171930,1767168614429,151.0,0.00043178,50]
[400171931,1767168614501,476.441207,0.00043178,50]
[400171932,1767168614637,151.0,0.00043178,50]
[400171933,1767168614715,151.0,0.00043178,50]
[400171934,1767168614897,476.441207,0.00043178,50]
[400171935,1767168614991,169.293461,0.00043178,50]
[400171936,1767168615061,205.011185,0.00043178,50]
[400171937,1767168615177,476.441207,0.00043178,50]
[400171938,1767168615452,476.441207,0.00043178,50]
[400171939,1767168615804,476.441207,0.00043178,50]
[400171940,1767168616086,213.138384,0.00043178,50]
[400171941,1767168616178,476.441207,0.00043178,50]
[400171942,1767168616298,-227.14528256,0.00012985,2]
[400171943,1767168616388,213.138384,0.00043178,50]
[400171944,1767168616475,151.0,0.00043178,50]
[400171945,1767168616584,476.441207,0.00043178,50]
[400171946,1767168616701,213.138384,0.00043178,50]
[400171947,1767168616781,151.0,0.00043178,50]
[400171948,1767168616861,476.441207,0.00043178,50]
[400171949,1767168617000,151.0,0.00043178,50]
[400171950,1767168617082,213.138384,0.00043178,50]
[400171951,1767168617164,476.441207,0.00043178,50]
[400171952,1767168617293,151.0,0.00043178,50]
[400171953,1767168617384,213.138384,0.00043178,50]
[400171954,1767168617587,151.0,0.00043178,50]
[400171955,1767168617684,213.138384,0.00043178,50]
[400171956,1767168617761,476.441207,0.00043178,50]
[400171957,1767168617960,213.138384,0.00043178,50]
[400171958,1767168618059,476.441207,0.00043178,50]
[400171959,1767168618288,213.138384,0.00043178,50]
[400171960,1767168618385,476.441198,0.00043178,50]
[400171961,1767168618591,213.138384,0.00043178,50]
[400171962,1767168618684,-302.74535838,0.00012985,2]
[400171963,1767168618853,151.0,0.00043178,50]
[400171964,1767168619010,213.138384,0.00043178,50]
[400171965,1767168619171,151.0,0.00043178,50]
[400171966,1767168619329,213.138384,0.00043178,50]
[400171967,1767168619487,151.0,0.00043178,50]
[400171968,1767168619630,213.138384,0.00043178,50]
[400171969,1767168619772,151.0,0.00043178,50]
[400171970,1767168619937,213.138384,0.00043178,50]
[400171971,1767168620048,151.0,0.00043178,50]
[400171972,1767168620268,213.138384,0.00043178,50]
[400171973,1767168620439,151.0,0.00043178,50]
[400171974,1767168620563,213.138384,0.00043178,50]
[400171975,1767168620613,-238.0,0.00012985,2]
[400171976,1767168620705,151.0,0.00043178,50]
[400171977,1767168620881,213.138384,0.00043178,50]
[400171978,1767168621020,151.0,0.00043178,50]
[400171979,1767168621187,213.138384,0.00043178,50]
[400171980,1767168621322,151.0,0.00043178,50]
[400171981,1767168621698,151.0,0.00043178,50]
[400171982,1767168621786,213.138384,0.00043178,50]
[400171983,1767168621933,225.412701,0.00043178,50]
[400171984,1767168622008,153.837714,0.00043178,50]
[400171985,1767168622099,362.112547,0.00043178,50]
[400171986,1767168622179,213.138384,0.00043178,50]
[400171987,1767168622350,362.112547,0.00043178,50]
[400171988,1767168622459,213.138374,0.00043178,50]
[400171989,1767168622659,362.112547,0.00043178,50]
[400171990,1767168622963,362.112547,0.00043178,50]
[400171991,1767168623325,362.112547,0.00043178,50]
[400171992,1767168623748,-268.13932257,0.00012985,2]
[400171993,1767168623863,362.112547,0.00043178,50]
[400171994,1767168623976,362.112547,0.00043178,50]
[400171995,1767168624269,362.112547,0.00043178,50]
[400171996,1767168624584,362.112547,0.00043178,50]
[400171997,1767168624793,-216.23524429,0.00012985,2]
[400171998,1767168624885,362.112547,0.00043178,50]
[400171999,1767168625254,362.112547,0.00043178,50]
[400172000,1767168625558,362.112547,0.00043178,50]
[400172001,1767168625833,1090.380696,0.00043178,50]
[400172002,1767168625906,362.112547,0.00043178,50]
[400172003,1767168626151,362.112547,0.00043178,50]
[400172004,1767168626225,1090.380696,0.00043178,50]
[400172005,1767168626451,362.112547,0.00043178,50]
[400172006,1767168626525,1090.380696,0.00043178,50]
[400172007,1767168626752,362.112547,0.00043178,50]
[400172008,1767168626831,1090.380696,0.00043178,50]
[400172009,1767168627107,362.112547,0.00043178,50]
[400172010,1767168627308,1090.380696,0.00043178,50]
[400172011,1767168627397,362.112547,0.00043178,50]
[400172012,1767168627586,1090.380696,0.00043178,50]
[400172013,1767168627906,1090.380696,0.00043178,50]
[400172014,1767168628237,1090.380696,0.00043178,50]
[400172015,1767168628389,151.0,0.00043178,50]
[400172016,1767168628472,405.631881,0.00043178,50]
[400172017,1767168628856,151.0,0.00043178,50]
[400172018,1767168628926,405.631881,0.00043178,50]
[400172019,1767168628995,1090.380696,0.00043178,50]
[400172020,1767168629104,151.0,0.00043178,50]
[400172021,1767168629181,151.0,0.00043178,50]
[400172022,1767168629259,405.631881,0.00043178,50]
[400172023,1767168629422,151.0,0.00043178,50]
[400172024,1767168629498,1090.380696,0.00043178,50]
[400172025,1767168629626,151.0,0.00043178,50]
[400172026,1767168629712,405.631881,0.00043178,50]
[400172027,1767168629802,1090.380696,0.00043178,50]
[400172028,1767168629881,405.631881,0.00043178,50]
[400172029,1767168629955,151.0,0.00043178,50]
[400172030,1767168630027,151.0,0.00043178,50]
[400172031,1767168630126,1090.380696,0.00043178,50]
[400172032,1767168630211,151.0,0.00043178,50]
[400172033,1767168630290,151.0,0.00043178,50]
[400172034,1767168630380,1090.380696,0.00043178,50]
[400172035,1767168630470,151.0,0.00043178,50]
[400172036,1767168630546,405.631881,0.00043178,50]
[400172037,1767168630623,362.112547,0.00043178,50]
[400172038,1767168630699,197.568793,0.00043178,50]
[400172039,1767168630778,1090.380696,0.00043178,50]
[400172040,1767168630848,151.0,0.00043178,50]
[400172041,1767168630925,405.631881,0.00043178,50]
[400172042,1767168631000,362.112543,0.00043178,50]
[400172043,1767168631080,1090.380696,0.00043178,50]
[400172044,1767168631159,151.0,0.00043178,50]
[400172045,1767168631234,405.631881,0.00043178,50]
[400172046,1767168631319,1090.380696,0.00043178,50]
[400172047,1767168631404,151.0,0.00043178,50]
[400172048,1767168631480,405.631881,0.00043178,50]
[400172049,1767168631567,1090.380696,0.00043178,50]
[400172053,1767168632087,405.631881,0.00043178,50]
[400172054,1767168632198,151.0,0.00043178,50]
[400172055,1767168632282,1090.380696,0.00043178,50]
[400172057,1767168632372,405.631881,0.00043178,50]
[400172058,1767168632453,175.34118,0.00043178,50]
[400172060,1767168632487,-398.36875494,0.00012985,2]
[400172061,1767168632502,-4387.67352384,0.00012985,2]
[400172062,1767168632514,-737.22721849,0.00012985,2]
[400172063,1767168632541,-1432.6153019,0.00012985,2]
[400172064,1767168632560,-1090.32619314,0.00012985,2]
[400172065,1767168632574,-446.7,0.00012985,2]
[400172066,1767168632588,-1525.2084021,0.00012985,2]
[400172067,1767168632601,-1677.13016925,0.00012985,2]
[400172068,1767168632614,-150.0,0.00013084,2]
[400172069,1767168632625,-300.0,0.00013084,2]
[400172070,1767168632636,-1200.0,0.00013084,2]
[400172071,1767168632647,-300.0,0.00013084,2]
[400172072,1767168632658,-19820.16070493,0.00013085,2]
[400172073,1767168632677,-13746.81644812,0.00013085,2]
[400172074,1767168632690,-3556.59746186,0.00013085,2]
[400172075,1767168632768,405.631881,0.00043178,50]
[400172076,1767168632864,151.0,0.00043178,50]
[400172077,1767168632937,405.631881,0.00043178,50]
[400172078,1767168633021,165.596647,0.00043178,50]
[400172079,1767168633106,405.631881,0.00043178,50]
[400172080,1767168633188,1090.380696,0.00043178,50]
[400172081,1767168633340,405.631881,0.00043178,50]
[400172082,1767168633647,405.631881,0.00043178,50]
[400172083,1767168633887,1090.380704,0.00043178,50]
[400172084,1767168633963,405.631881,0.00043178,50]
[400172085,1767168634206,405.631881,0.00043178,50]
[400172086,1767168634505,405.631881,0.00043178,50]
[400172087,1767168634785,405.63188,0.00043178,50]
[400172088,1767168635216,155.448959,0.00043178,50]
[400172089,1767168635765,151.0,0.00043178,50]
[400172090,1767168636087,151.0,0.00043178,50]
[400172091,1767168636425,199.627717,0.00043178,50]
[400172092,1767168636834,187.204038,0.00043178,50]
[400172093,1767168637135,187.204038,0.00043178,50]
[400172094,1767168637424,187.204038,0.00043178,50]
[400172095,1767168637781,187.204038,0.00043178,50]
[400172096,1767168638086,187.204038,0.00043178,50]
[400172097,1767168638180,151.0,0.00043178,50]
[400172098,1767168638199,-696.05560694,0.00013085,2]
[400172099,1767168638212,-597.05296577,0.00013085,2]
[400172100,1767168638224,-2131.45442951,0.00013085,2]
[400172101,1767168638236,-281.55,0.00013085,2]
[400172102,1767168638252,-18200.89889173,0.00013085,2]
[400172103,1767168638264,-3324.36285625,0.00013085,2]
[400172104,1767168638276,-1419.72595635,0.00013085,2]
[400172105,1767168638377,151.0,0.00043178,50]
[400172106,1767168638391,-1691.06524236,0.00013085,2]
[400172107,1767168638407,-3375.5170958,0.00013085,2]
[400172108,1767168638420,-574.0,0.00013085,2]
[400172110,1767168638432,-314.06540004,0.00013085,2]
[400172113,1767168638518,187.204038,0.00043178,50]
[400172114,1767168638537,-33329.90995989,0.00013085,2]
[400172119,1767168638620,151.0,0.00043178,50]
[400172129,1767168638708,151.0,0.00043178,50]
[400172139,1767168638800,187.204038,0.00043178,50]
[400172148,1767168638875,151.0,0.00043178,50]
[400172160,1767168638985,151.0,0.00043178,50]
[400172169,1767168639064,187.204038,0.00043178,50]
[400172179,1767168639142,151.0,0.00043178,50]
[400172194,1767168639283,165.76587,0.00043178,50]
[400172203,1767168639359,187.204038,0.00043178,50]
[400172212,1767168639434,151.0,0.00043178,50]
[400172233,1767168639625,187.204038,0.00043178,50]
[400172241,1767168639696,151.0,0.00043178,50]
[400172267,1767168639931,187.204038,0.00043178,50]
[400172277,1767168640013,151.0,0.00043178,50]
[400172302,1767168640241,187.204038,0.00043178,50]
[400172304,1767168640254,-316855.84627747,0.00013085,2]
[400172307,1767168640266,-8450.07069859,0.00013085,2]
[400172309,1767168640280,-11224.21050213,0.00013085,2]
[400172320,1767168640375,-560410.63950226,0.00013085,2]
[400172322,1767168640385,-151.59199033,0.00013085,2]
[400172324,1767168640394,-5.49719714,0.00013185,2]
[400172326,1767168640404,-32807.4863,0.00013185,2]
[400172328,1767168640414,-2065.9324,0.00013185,2]
[400172330,1767168640423,-166.66,0.00013246,2]
[400172332,1767168640433,-7640.6753846,0.00013284,2]
[400172334,1767168640443,-4516.7401444,0.00013285,2]
[400172336,1767168640453,-13487.7498063,0.00013285,2]
[400172338,1767168640463,-837.61112145,0.000133,2]
[400172340,1767168640472,-13059.05885221,0.0001342,2]
[400172342,1767168640482,-2062.7,0.00013506,2]
[400172344,1767168640491,-166.66,0.00013514,2]
[400172346,1767168640501,-500.0,0.00013576,2]
[400172349,1767168640511,-1815.9,0.00013588,2]
[400172351,1767168640520,-1195.8,0.00013598,2]
[400172353,1767168640531,-150.99,0.00013598,2]
[400172355,1767168640540,-999.99,0.00013598,2]
[400172357,1767168640550,-9999.99,0.00013598,2]
[400172359,1767168640559,-2161.16,0.00013598,2]
[400172361,1767168640569,-500.0,0.00013616,2]
[400172363,1767168640579,-7881.97,0.00013676,2]
[400172365,1767168640588,-494.3392313,0.00013698,2]
[400172367,1767168640597,-500.0,0.00013698,2]
[400172369,1767168640607,-500.0,0.00013698,2]
[400172371,1767168640617,-500.0,0.00013698,2]
[400172373,1767168640626,-500.0,0.00013698,2]
[400172375,1767168640636,-500.0,0.00013698,2]
[400172377,1767168640646,-500.0,0.00013698,2]
[400172379,1767168640660,-514.2348058,0.00013698,2]
[400172381,1767168640669,-500.0,0.00013698,2]
[400172383,1767168640679,-500.0,0.00013698,2]
[400172385,1767168640689,-645.79238712,0.00013698,2]
[400172387,1767168640698,-500.0,0.00013698,2]
[400172389,1767168640707,-500.0,0.00013698,2]
[400172392,1767168640721,-500.0,0.00013698,2]
[400172394,1767168640730,-223.38638999,0.00013698,2]
[400172396,1767168640739,-200.0,0.00013699,2]
[400172398,1767168640748,-1000.0,0.00013699,2]
[400172400,1767168640758,-200.0,0.00013714,2]
[400172402,1767168640767,-150.0,0.00013714,2]
[400172404,1767168640777,-28020.56,0.00013714,2]
[400172405,1767168640786,-1075.94,0.00013714,2]
[400172408,1767168640796,-166.66,0.00013782,2]
[400172410,1767168640806,-13059.05885221,0.00013855,2]
[400172412,1767168640815,-2062.7,0.00013871,2]
[400172414,1767168640824,-500.0,0.00013871,2]
[400172416,1767168640834,-155.17502929,0.000139,2]
[400172418,1767168640843,-362.156,0.00013908,2]
[400172420,1767168640853,-1500.0,0.00013924,2]
[400172422,1767168640863,-913.81472611,0.00013954,2]
[400172424,1767168640872,-1187.63,0.00014001,2]
[400172426,1767168640882,-11667.64,0.00014034,2]
[400172428,1767168640891,-1600.0,0.00014038,2]
[400172430,1767168640900,-166.66,0.00014049,2]
[400172432,1767168640909,-166.99,0.00014087,2]
[400172434,1767168640919,-2960.0,0.00014157,2]
[400172436,1767168640928,-255.0,0.00014196,2]
[400172438,1767168640938,-196.68,0.00014263,2]
[400172440,1767168640948,-13059.05885221,0.0001429,2]
[400172442,1767168640957,-420.0,0.00014347,2]
[400172444,1767168640967,-420.0,0.00014347,2]
[400172446,1767168640976,-1680.0,0.00014392,2]
[400172448,1767168640986,-434.45430918,0.00014392,2]
[400172450,1767168640996,-328.99880728,0.00014392,2]
[400172452,1767168641006,-195.0,0.00014393,2]
[400172455,1767168641016,-250.0,0.00014393,2]
[400172457,1767168641026,-195.0,0.00014393,2]
[400172459,1767168641035,-13059.05885221,0.00014725,2]
[400172461,1767168641044,-270.21,0.00014858,2]
[400172463,1767168641054,-277.89,0.00014859,2]
[400172465,1767168641066,-500.0,0.00014877,2]
[400172467,1767168641075,-1007.8209517,0.00014991,2]
[400172469,1767168641085,-13059.05885221,0.0001516,2]
[400172471,1767168641095,-166.99,0.00015249,2]
[400172473,1767168641105,-454.763,0.00015329,2]
[400172475,1767168641115,-196.68,0.0001536,2]
[400172477,1767168641125,-224.8752503,0.00015372,2]
[400172479,1767168641135,-433.0,0.000154,2]
[400172481,1767168641145,-3575.0,0.0001541,2]
[400172483,1767168641154,-1264.0,0.0001541,2]
[400172485,1767168641164,-432.0,0.0001541,2]
[400172487,1767168641173,-1199.0,0.0001541,2]
[400172489,1767168641182,-913.0,0.0001541,2]
[400172491,1767168641191,-4812.0,0.0001541,2]
[400172493,1767168641200,-1310.0,0.0001541,2]
[400172495,1767168641210,-2440.826,0.0001541,2]
[400172497,1767168641221,-6542.0,0.0001541,2]
[400172499,1767168641231,-1704.8651222,0.00015501,2]
[400172501,1767168641241,-3009.5237743,0.00015502,2]
[400172504,1767168641254,-13059.05885221,0.00015595,2]
[400172506,1767168641263,-159.99837723,0.00015635,2]
[400172507,1767168641273,-500.0,0.00015644,2]
[400172510,1767168641283,-500.0,0.00015644,2]
[400172512,1767168641293,-500.0,0.00015644,2]
[400172514,1767168641302,-500.0,0.00015644,2]
[400172516,1767168641312,-500.0,0.00015644,2]
[400172518,1767168641323,-150.0,0.00015645,2]
[400172520,1767168641333,-200.0,0.00015645,2]
[400172522,1767168641343,-264.0,0.00015645,2]
[400172524,1767168641352,-194.067,0.00015645,2]
[400172526,1767168641362,-250.0,0.00015645,2]
[400172528,1767168641372,-224.984,0.00015645,2]
[400172530,1767168641382,-250.0,0.00015645,2]
[400172532,1767168641392,-156.732,0.00015645,2]
[400172534,1767168641402,-243.342,0.00015645,2]
[400172536,1767168641411,-150.0,0.00015645,2]
[400172538,1767168641422,-150.0,0.00015645,2]
[400172540,1767168641431,-151.0,0.00015645,2]
[400172542,1767168641441,-150.592,0.00015645,2]
[400172544,1767168641450,-161.362,0.00015645,2]
[400172546,1767168641460,-613.0,0.00015645,2]
[400172548,1767168641470,-3462.0,0.00015645,2]
[400172550,1767168641479,-1330.815,0.00015645,2]
[400172552,1767168641488,-1528.0,0.00015645,2]
[400172553,1767168641498,-391.62241139,0.0001568,2]
[400172554,1767168641508,-168.0,0.00015715,2]
[400172555,1767168641518,-587.0,0.00015733,2]
[400172556,1767168641527,-587.0,0.00015733,2]
[400172557,1767168641536,-1600.0,0.00015793,2]
[400172558,1767168641546,-2351.0,0.00015832,2]
[400172559,1767168641555,-336.0,0.00015882,2]
[400172560,1767168641564,-151.59199032,0.000159,2]
[400172561,1767168641573,-336.0,0.00015932,2]
[400172562,1767168641582,-336.0,0.00015957,2]
[400172563,1767168641591,-502.72405427,0.00015973,2]
[400172564,1767168641600,-500.0,0.00015973,2]
[400172566,1767168641609,-500.0,0.00015973,2]
[400172568,1767168641618,-500.0,0.00015973,2]
[400172570,1767168641628,-500.0,0.00015973,2]
[400172572,1767168641638,-500.0,0.00015973,2]